[Event "Srdja Dragasevic Memorial-A 2024"]
[Site "Cetinje"]
[Date "2024.06.25"]
[Round "5.7"]
[White "Mammadov, Zaur"]
[Black "Hart, Alexander"]
[Result "1/2-1/2"]
[ECO "A46"]
[WhiteElo "2426"]
[BlackElo "1949"]
[Annotator "RC"]
[PlyCount "110"]
[EventDate "2024.06.23"]
[EventType "swiss"]
[EventCountry "MNE"]
[SourceTitle "playchess.com"]
[Source "ChessBase"]
[SourceQuality "1"]
[TimeControl "40/5400+30:1800+30"]

1. Nf3 {[%emt 0:02:06]} Nf6 {[%emt 0:00:15]} 2. g3 {[%emt 0:00:07]} b5 {[%emt 0:00:04]} 3. Bg2 {[%emt 0:00:10]} Bb7 {[%emt 0:00:02]} 4. d4 {[%emt 0:00:14]} e6 {[%emt 0:00:52]} 5. O-O {[%emt 0:00:08]} Be7 {[%emt 0:03:09]} 6. a4 {[%emt 0:00:48]} b4 {[%emt 0:00:07]} 7. c4 {[%emt 0:00:04]} bxc3 {[%emt 0:03:17]} 8. Nxc3 {[%emt 0:01:35]} O-O {[%emt 0:01:31]} 9. Bf4 {[%emt 0:00:21]} Na6 {[%emt 0:11:03]} 10. Rc1 {[%emt 0:01:57]} Nh5 {[%emt 0:09:07]} 11. Bd2 {[%emt 0:01:02]} c5 {[%emt 0:05:51]} 12. dxc5 {[%emt 0:06:18]} Nxc5 {[%emt 0:02:22]} 13. b4 {[%emt 0:00:57]} Ne4 {[%emt 0:01:44]} 14. Nxe4 {[%emt 0:09:23]} Bxe4 {[%emt 0:00:03]} 15. Bc3 {[%emt 0:01:14]} Nf6 {[%emt 0:04:51]} 16. b5 {[%emt 0:10:29]} a6 {[%emt 0:04:02]} 17. Ne5 {[%emt 0:10:09]} Bxg2 {[%emt 0:01:32]} 18. Kxg2 {[%emt 0:00:24]} axb5 {[%emt 0:00:29]} 19. axb5 {[%emt 0:00:01]} Qb6 {[%emt 0:12:52]} 20. Qd3 {[%emt 0:00:40]} Rfd8 {[%emt 0:11:40]} 21. Rfd1 {[%emt 0:03:36]} Nd5 {[%emt 0:04:23]} 22. Be1 {[%emt 0:18:18]} Ra3 {[%emt 0:07:37]} 23. Qb1 {[%emt 0:02:38]} Qb7 {[%emt 0:02:47]} 24. Kg1 {[%emt 0:04:29]} Rda8 {[%emt 0:03:35]} 25. Nc4 {[%emt 0:12:47]} Ra1 {[%emt 0:05:46]} 26. Qxa1 {[%emt 0:01:59]} Rxa1 {[%emt 0:00:01]} 27. Rxa1 {[%emt 0:00:01]} Qxb5 {[%emt 0:00:02]} 28. e4 {[%emt 0:01:45]} Qxc4 {[%emt 0:03:48]} 29. Ra8+ {[%emt 0:00:14]} Bf8 {[%emt 0:00:01]} 30. exd5 {[%emt 0:00:09]} h5 {[%emt 0:01:55]} 31. dxe6 {[%emt 0:02:03]} fxe6 {[%emt 0:00:31]} 32. Rd8 {[%emt 0:02:32]} d5 {[%emt 0:00:27]} 33. Ra1 {[%emt 0:00:20]} Kf7 {[%emt 0:00:38]} 34. Ra7+ {[%emt 0:01:29]} Kg6 {[%emt 0:00:24]} 35. Re8 {[%emt 0:01:24]} Qe4 {[%emt 0:00:29]} 36. Rxf8 {[%emt 0:02:50]} Qxe1+ {[%emt 0:00:08]} 37. Kg2 {[%emt 0:00:02]} Qe4+ {[%emt 0:00:07]} 38. Rf3 {[%emt 0:00:09]} d4 {[%emt 0:00:33]} 39. h4 {[%emt 0:02:10]} Qd5 {[%emt 0:00:50]} 40. Raa3 {[%emt 0:00:00]} e5 {[%emt 0:00:00]} 41. Kh2 {[%emt 0:10:10]} e4 {[%emt 0:02:24]} 42. Rfb3 {[%emt 0:04:33]} d3 {[%emt 0:05:24]} 43. Rb1 {[%emt 0:02:17]} Qf5 {[%emt 0:13:19]} 44. Ra2 {[%emt 0:01:16]} Qd5 {[%emt 0:05:20]} 45. Rab2 {[%emt 0:06:58]} Qc4 {[%emt 0:02:11]} 46. Kg1 {[%emt 0:01:27]} Kf5 {[%emt 0:02:19]} 47. Rb4 {[%emt 0:01:16]} Qc2 {[%emt 0:00:26]} 48. R4b2 {[%emt 0:00:15]} Qc4 {[%emt 0:00:40]} 49. Rb6 {[%emt 0:02:16]} d2 {[%emt 0:01:33]} 50. R6b5+ {[%emt 0:02:59]} Kg6 {[%emt 0:01:36]} 51. Rg5+ {[%emt 0:00:32]} Kf6 {[%emt 0:01:07]} 52. Rb6+ {[%emt 0:00:23]} Kf7 {[%emt 0:00:38]} 53. Rb7+ {[%emt 0:00:13]} Kf6 {[%emt 0:00:13]} 54. Rb6+ {[%emt 0:00:08]} Kf7 {[%emt 0:00:11]} 55. Rb7+ {[%emt 0:00:01]} Kf6 {[%emt 0:00:50]} 1/2-1/2

[Event "Srdja Dragasevic Memorial-A 2024"]
[Site "Cetinje"]
[Date "2024.06.25"]
[Round "5.8"]
[White "Alimpic, Aleksa"]
[Black "Yaksin, Oleg"]
[Result "1/2-1/2"]
[ECO "A45"]
[WhiteElo "2281"]
[BlackElo "2389"]
[Annotator "RC"]
[PlyCount "188"]
[EventDate "2024.06.23"]
[EventType "swiss"]
[EventCountry "MNE"]
[SourceTitle "playchess.com"]
[Source "ChessBase"]
[SourceQuality "1"]
[TimeControl "40/5400+30:1800+30"]

1. d4 {[%emt 0:00:20]} Nf6 {[%emt 0:00:04]} 2. Bg5 {[%emt 0:00:09]} e6 {[%emt 0:00:09]} 3. e4 {[%emt 0:00:05]} h6 {[%emt 0:00:04]} 4. Bxf6 {[%emt 0:00:04]} Qxf6 {[%emt 0:00:04]} 5. Nc3 {[%emt 0:00:05]} b6 {[%emt 0:02:38]} 6. e5 {[%emt 0:09:14]} Qe7 {[%emt 0:01:34]} 7. Nf3 {[%emt 0:00:45]} Bb7 {[%emt 0:00:11]} 8. Be2 {[%emt 0:10:25]} g6 {[%emt 0:08:45]} 9. d5 {[%emt 0:10:37]} Qc5 {[%emt 0:09:53]} 10. dxe6 {[%emt 0:04:45]} dxe6 {[%emt 0:02:23]} 11. Bb5+ {[%emt 0:05:40]} Nc6 {[%emt 0:16:19]} 12. O-O {[%emt 0:01:57]} Bg7 {[%emt 0:04:36]} 13. Re1 {[%emt 0:01:45]} a6 {[%emt 0:12:05]} 14. Bxc6+ {[%emt 0:05:25]} Qxc6 {[%emt 0:00:10]} 15. Ne4 {[%emt 0:04:08]} O-O {[%emt 0:05:25]} 16. Qe2 {[%emt 0:02:08]} Rad8 {[%emt 0:00:46]} 17. h4 {[%emt 0:01:43]} Rd5 {[%emt 0:07:21]} 18. c4 {[%emt 0:01:53]} Rd7 {[%emt 0:02:34]} 19. Qe3 {[%emt 0:12:30]} Rfd8 {[%emt 0:12:20]} 20. Qf4 {[%emt 0:02:37]} Rd3 {[%emt 0:02:28]} 21. b3 {[%emt 0:05:12]} Qe8 {[%emt 0:01:38]} 22. Re3 {[%emt 0:03:18]} Rxe3 {[%emt 0:02:22]} 23. Qxe3 {[%emt 0:00:02]} Qc6 {[%emt 0:02:11]} 24. Nf6+ {[%emt 0:05:18]} Kf8 {[%emt 0:01:05]} 25. Re1 {[%emt 0:01:38]} Ke7 {[%emt 0:02:00]} 26. Ng4 {[%emt 0:01:37]} Qc5 {[%emt 0:00:43]} 27. Qf4 {[%emt 0:00:58]} Bxf3 {[%emt 0:00:17]} 28. Qxf3 {[%emt 0:00:12]} Qd4 {[%emt 0:00:08]} 29. Nf6 {[%emt 0:03:48]} Qd2 {[%emt 0:02:33]} 30. Re2 {[%emt 0:01:06]} Qd1+ {[%emt 0:00:17]} 31. Kh2 {[%emt 0:00:02]} Qd4 {[%emt 0:00:55]} 32. g3 {[%emt 0:00:41]} Kf8 {[%emt 0:00:24]} 33. h5 {[%emt 0:03:09]} gxh5 {[%emt 0:01:00]} 34. Kg2 {[%emt 0:02:32]} h4 {[%emt 0:00:57]} 35. Re4 {[%emt 0:00:42]} Qd1 {[%emt 0:00:02]} 36. gxh4 {[%emt 0:01:05]} Qxf3+ {[%emt 0:00:48]} 37. Kxf3 {[%emt 0:00:02]} Ke7 {[%emt 0:00:48]} 38. Nh5 {[%emt 0:00:21]} Bh8 {[%emt 0:00:22]} 39. Ke2 {[%emt 0:00:34]} Rg8 {[%emt 0:00:43]} 40. Ng3 {[%emt 0:00:00]} Rd8 {[%emt 0:00:00]} 41. Nh5 {[%emt 0:04:00]} Rg8 {[%emt 0:11:08]} 42. Ng3 {[%emt 0:00:51]} Kd7 {[%emt 0:00:03]} 43. Kf3 {[%emt 0:09:45]} Rg6 {[%emt 0:04:57]} 44. Ne2 {[%emt 0:05:28]} Bg7 {[%emt 0:01:09]} 45. Ng3 {[%emt 0:01:50]} Bh8 {[%emt 0:06:53]} 46. Rf4 {[%emt 0:00:53]} Ke8 {[%emt 0:01:50]} 47. Re4 {[%emt 0:01:26]} Ke7 {[%emt 0:02:30]} 48. Kf4 {[%emt 0:02:30]} Rg8 {[%emt 0:00:59]} 49. Ke3 {[%emt 0:01:29]} a5 {[%emt 0:00:06]} 50. a3 {[%emt 0:01:12]} a4 {[%emt 0:00:29]} 51. b4 {[%emt 0:00:07]} Rd8 {[%emt 0:01:12]} 52. Ke2 {[%emt 0:00:41]} c6 {[%emt 0:00:24]} 53. f4 {[%emt 0:00:53]} f5 {[%emt 0:01:03]} 54. exf6+ {[%emt 0:00:48]} Kxf6 {[%emt 0:00:01]} 55. h5 {[%emt 0:01:11]} Bg7 {[%emt 0:01:25]} 56. c5 {[%emt 0:03:16]} b5 {[%emt 0:00:38]} 57. Re3 {[%emt 0:00:44]} Kf7 {[%emt 0:00:33]} 58. f5 {[%emt 0:00:56]} Re8 {[%emt 0:01:27]} 59. Ne4 {[%emt 0:00:30]} Be5 {[%emt 0:00:04]} 60. f6 {[%emt 0:01:26]} Rd8 {[%emt 0:00:29]} 61. Rf3 {[%emt 0:00:43]} Rd4 {[%emt 0:00:54]} 62. Ke3 {[%emt 0:00:44]} Rd1 {[%emt 0:00:07]} 63. Ke2 {[%emt 0:00:16]} Rd5 {[%emt 0:00:51]} 64. Rf1 {[%emt 0:00:34]} Bb2 {[%emt 0:01:40]} 65. Rf3 {[%emt 0:00:38]} Rxh5 {[%emt 0:00:34]} 66. Rg3 {[%emt 0:01:31]} Kf8 {[%emt 0:00:55]} 67. Rg7 {[%emt 0:00:15]} Bxf6 {[%emt 0:00:53]} 68. Rc7 {[%emt 0:00:14]} Rh2+ {[%emt 0:00:34]} 69. Kf3 {[%emt 0:00:49]} Bb2 {[%emt 0:00:06]} 70. Rxc6 {[%emt 0:00:05]} Bxa3 {[%emt 0:00:38]} 71. Rb6 {[%emt 0:00:06]} Rb2 {[%emt 0:00:58]} 72. Rxb5 {[%emt 0:00:26]} Rxb4 {[%emt 0:00:04]} 73. Ra5 {[%emt 0:00:17]} Rc4 {[%emt 0:00:14]} 74. Ke3 {[%emt 0:01:38]} Bb2 {[%emt 0:00:59]} 75. Kd3 {[%emt 0:00:40]} Rd4+ {[%emt 0:00:05]} 76. Ke3 {[%emt 0:00:03]} a3 {[%emt 0:00:17]} 77. c6 {[%emt 0:00:24]} Rc4 {[%emt 0:00:05]} 78. Ra8+ {[%emt 0:00:12]} Kg7 {[%emt 0:00:08]} 79. Ra7+ {[%emt 0:00:17]} Kg6 {[%emt 0:00:15]} 80. c7 {[%emt 0:00:28]} Be5 {[%emt 0:01:20]} 81. Rxa3 {[%emt 0:00:53]} Bxc7 {[%emt 0:00:06]} 82. Rc3 {[%emt 0:00:34]} Rxc3+ {[%emt 0:01:56]} 83. Nxc3 {[%emt 0:00:04]} h5 {[%emt 0:00:25]} 84. Ne4 {[%emt 0:00:53]} h4 {[%emt 0:00:52]} 85. Kf3 {[%emt 0:00:29]} Kf5 {[%emt 0:00:25]} 86. Nc5 {[%emt 0:00:17]} h3 {[%emt 0:00:38]} 87. Ne4 {[%emt 0:00:53]} Bf4 {[%emt 0:00:47]} 88. Nc5 {[%emt 0:00:50]} e5 {[%emt 0:00:08]} 89. Ne4 {[%emt 0:00:30]} h2 {[%emt 0:00:08]} 90. Nf2 {[%emt 0:00:04]} e4+ {[%emt 0:00:06]} 91. Kg2 {[%emt 0:00:25]} e3 {[%emt 0:00:06]} 92. Nd3 {[%emt 0:00:20]} e2 {[%emt 0:00:13]} 93. Ne1 {[%emt 0:00:11]} Ke4 {[%emt 0:00:12]} 94. Nc2 {[%emt 0:00:28]} Bg3 {[%emt 0:00:31]} 1/2-1/2

[Event "Srdja Dragasevic Memorial-A 2024"]
[Site "Cetinje"]
[Date "2024.06.25"]
[Round "5.9"]
[White "Pecurica, Milos"]
[Black "Arora Honi"]
[Result "1-0"]
[ECO "D46"]
[WhiteElo "2338"]
[BlackElo "2082"]
[Annotator "RC"]
[PlyCount "55"]
[EventDate "2024.06.23"]
[EventType "swiss"]
[EventCountry "MNE"]
[SourceTitle "playchess.com"]
[Source "ChessBase"]
[SourceQuality "1"]
[TimeControl "40/5400+30:1800+30"]

1. d4 {[%emt 0:00:23]} d5 {[%emt 0:02:30]} 2. c4 {[%emt 0:00:13]} c6 {[%emt 0:00:07]} 3. Nf3 {[%emt 0:00:25]} Nf6 {[%emt 0:00:13]} 4. Nc3 {[%emt 0:00:08]} e6 {[%emt 0:00:06]} 5. e3 {[%emt 0:00:17]} Nbd7 {[%emt 0:00:07]} 6. Qc2 {[%emt 0:00:10]} Bd6 {[%emt 0:00:12]} 7. Bd3 {[%emt 0:00:21]} O-O {[%emt 0:00:11]} 8. O-O {[%emt 0:00:09]} dxc4 {[%emt 0:00:05]} 9. Bxc4 {[%emt 0:00:04]} b5 {[%emt 0:00:07]} 10. Be2 {[%emt 0:00:11]} Bb7 {[%emt 0:00:13]} 11. e4 {[%emt 0:00:21]} e5 {[%emt 0:00:05]} 12. dxe5 {[%emt 0:00:05]} Nxe5 {[%emt 0:00:11]} 13. Nd4 {[%emt 0:00:12]} Neg4 {[%emt 0:09:24]} 14. Nf5 {[%emt 0:00:23]} Bxh2+ {[%emt 0:11:03]} 15. Kh1 {[%emt 0:00:13]} Bb8 {[%emt 0:05:13]} 16. Bg5 {[%emt 0:01:26]} Qc7 {[%emt 0:06:16]} 17. f4 {[%emt 0:05:55]} b4 {[%emt 0:15:46]} 18. e5 {[%emt 0:06:59]} Nxe5 {[%emt 0:06:27]} 19. Bxf6 {[%emt 0:10:41]} gxf6 {[%emt 0:03:37]} 20. Ne4 {[%emt 0:07:53]} Nd7 {[%emt 0:02:44]} 21. Rad1 {[%emt 0:09:13]} c5 {[%emt 0:06:06]} 22. Qb3 {[%emt 0:10:22]} Kh8 {[%emt 0:00:43]} 23. Ned6 {[%emt 0:00:48]} Nb6 {[%emt 0:04:50]} 24. Nxf7+ {[%emt 0:03:02]} Rxf7 {[%emt 0:00:10]} 25. Rd8+ {[%emt 0:00:11]} Qxd8 {[%emt 0:00:02]} 26. Qxf7 {[%emt 0:00:06]} Bxg2+ {[%emt 0:00:11]} 27. Kg1 {[%emt 0:00:17]} Qd4+ {[%emt 0:02:26]} 28. Rf2 {[%emt 0:00:50]} 1-0

[Event "Srdja Dragasevic Memorial-A 2024"]
[Site "Cetinje"]
[Date "2024.06.25"]
[Round "5.10"]
[White "Tomic, Aleksandar"]
[Black "Skvortsov, Andrei"]
[Result "1/2-1/2"]
[ECO "A22"]
[WhiteElo "2388"]
[BlackElo "2331"]
[Annotator "RC"]
[PlyCount "55"]
[EventDate "2024.06.23"]
[EventType "swiss"]
[EventCountry "MNE"]
[SourceTitle "playchess.com"]
[Source "ChessBase"]
[SourceQuality "1"]
[TimeControl "40/5400+30:1800+30"]

1. c4 {[%emt 0:15:00]} e5 {[%emt 0:00:29]} 2. Nc3 {[%emt 0:00:40]} Nf6 {[%emt 0:01:11]} 3. e3 {[%emt 0:03:39]} d5 {[%emt 0:03:27]} 4. cxd5 {[%emt 0:00:41]} Nxd5 {[%emt 0:00:05]} 5. Qc2 {[%emt 0:00:38]} Nxc3 {[%emt 0:02:02]} 6. dxc3 {[%emt 0:01:29]} Bd6 {[%emt 0:00:21]} 7. Nf3 {[%emt 0:02:11]} O-O {[%emt 0:01:06]} 8. e4 {[%emt 0:01:36]} Nd7 {[%emt 0:00:58]} 9. Be2 {[%emt 0:06:57]} Qe7 {[%emt 0:03:07]} 10. O-O {[%emt 0:08:44]} a5 {[%emt 0:07:29]} 11. Rd1 {[%emt 0:02:50]} Bc5 {[%emt 0:03:41]} 12. Nd2 {[%emt 0:09:03]} Qh4 {[%emt 0:11:45]} 13. Rf1 {[%emt 0:04:45]} c6 {[%emt 0:08:24]} 14. a4 {[%emt 0:02:11]} Re8 {[%emt 0:01:48]} 15. Nf3 {[%emt 0:06:34]} Qf6 {[%emt 0:02:52]} 16. Nd2 {[%emt 0:05:02]} Qg6 {[%emt 0:01:50]} 17. Qd3 {[%emt 0:04:19]} Nf8 {[%emt 0:07:00]} 18. Qg3 {[%emt 0:01:35]} Qf6 {[%emt 0:02:22]} 19. Qf3 {[%emt 0:03:37]} Qe7 {[%emt 0:00:27]} 20. Nc4 {[%emt 0:01:53]} Ng6 {[%emt 0:01:32]} 21. g3 {[%emt 0:02:32]} Bh3 {[%emt 0:03:39]} 22. Rd1 {[%emt 0:00:13]} Be6 {[%emt 0:00:47]} 23. Be3 {[%emt 0:02:20]} f6 {[%emt 0:02:14]} 24. Bxc5 {[%emt 0:00:51]} Qxc5 {[%emt 0:00:01]} 25. Qe3 {[%emt 0:00:10]} Qxe3 {[%emt 0:00:29]} 26. Nxe3 {[%emt 0:00:11]} Nf8 {[%emt 0:03:09]} 27. f3 {[%emt 0:03:32]} g6 {[%emt 0:00:59]} 28. Bc4 {[%emt 0:11:17]} 1/2-1/2

[Event "Srdja Dragasevic Memorial-A 2024"]
[Site "Cetinje"]
[Date "2024.06.25"]
[Round "5.11"]
[White "Levi, Netanel"]
[Black "Damljanovic, Branko"]
[Result "0-1"]
[ECO "B51"]
[WhiteElo "2152"]
[BlackElo "2364"]
[Annotator "RC"]
[PlyCount "58"]
[EventDate "2024.06.23"]
[EventType "swiss"]
[EventCountry "MNE"]
[SourceTitle "playchess.com"]
[Source "ChessBase"]
[SourceQuality "1"]
[TimeControl "40/5400+30:1800+30"]

1. e4 {[%emt 0:04:15]} c5 {[%emt 0:00:08]} 2. Nf3 {[%emt 0:00:26]} d6 {[%emt 0:00:08]} 3. Bb5+ {[%emt 0:00:06]} Nd7 {[%emt 0:00:33]} 4. O-O {[%emt 0:00:10]} Ngf6 {[%emt 0:00:17]} 5. Re1 {[%emt 0:00:07]} a6 {[%emt 0:00:24]} 6. Bf1 {[%emt 0:00:06]} b5 {[%emt 0:03:31]} 7. a4 {[%emt 0:01:04]} Bb7 {[%emt 0:01:35]} 8. axb5 {[%emt 0:01:15]} axb5 {[%emt 0:00:01]} 9. Rxa8 {[%emt 0:00:37]} Qxa8 {[%emt 0:00:36]} 10. Nc3 {[%emt 0:11:45]} b4 {[%emt 0:05:47]} 11. Nb5 {[%emt 0:00:23]} Qb8 {[%emt 0:04:29]} 12. d4 {[%emt 0:10:25]} e5 {[%emt 0:02:29]} 13. dxe5 {[%emt 0:13:17]} dxe5 {[%emt 0:00:41]} 14. Nh4 {[%emt 0:08:12]} Bc6 {[%emt 0:05:04]} 15. Qd3 {[%emt 0:04:54]} g6 {[%emt 0:01:23]} 16. f4 {[%emt 0:05:26]} Be7 {[%emt 0:00:53]} 17. Nf3 {[%emt 0:06:03]} O-O {[%emt 0:01:48]} 18. c4 {[%emt 0:05:00]} Rd8 {[%emt 0:25:23]} 19. Qc2 {[%emt 0:02:56]} Nh5 {[%emt 0:01:42]} 20. f5 {[%emt 0:04:19]} Ndf6 {[%emt 0:03:04]} 21. Bg5 {[%emt 0:00:47]} gxf5 {[%emt 0:03:48]} 22. Nh4 {[%emt 0:06:50]} Ng7 {[%emt 0:01:34]} 23. exf5 {[%emt 0:01:11]} e4 {[%emt 0:01:03]} 24. Qf2 {[%emt 0:02:00]} Ng4 {[%emt 0:01:11]} 25. Qf4 {[%emt 0:06:31]} Qxf4 {[%emt 0:00:32]} 26. Bxf4 {[%emt 0:00:02]} Bxh4 {[%emt 0:00:11]} 27. g3 {[%emt 0:00:06]} Bf6 {[%emt 0:00:46]} 28. Na7 {[%emt 0:01:09]} Bd4+ {[%emt 0:00:30]} 29. Kg2 {[%emt 0:00:51]} Bb7 {[%emt 0:00:05]} 0-1

[Event "Srdja Dragasevic Memorial-A 2024"]
[Site "Cetinje"]
[Date "2024.06.25"]
[Round "5.12"]
[White "Vujosevic, Vladimir"]
[Black "Willy, Stephen"]
[Result "0-1"]
[ECO "C70"]
[WhiteElo "2306"]
[BlackElo "2046"]
[Annotator "RC"]
[PlyCount "72"]
[EventDate "2024.06.23"]
[EventType "swiss"]
[EventCountry "MNE"]
[SourceTitle "playchess.com"]
[Source "ChessBase"]
[SourceQuality "1"]
[TimeControl "40/5400+30:1800+30"]

1. e4 {[%emt 0:00:13]} e5 {[%emt 0:00:04]} 2. Nf3 {[%emt 0:00:27]} Nc6 {[%emt 0:00:05]} 3. Bb5 {[%emt 0:00:25]} a6 {[%emt 0:00:09]} 4. Ba4 {[%emt 0:00:15]} f5 {[%emt 0:00:08]} 5. Bxc6 {[%emt 0:01:42]} dxc6 {[%emt 0:01:13]} 6. Nc3 {[%emt 0:00:43]} Nf6 {[%emt 0:02:30]} 7. Qe2 {[%emt 0:01:32]} Bd6 {[%emt 0:01:03]} 8. d3 {[%emt 0:02:08]} O-O {[%emt 0:01:24]} 9. exf5 {[%emt 0:06:38]} Bxf5 {[%emt 0:00:22]} 10. Bg5 {[%emt 0:00:22]} h6 {[%emt 0:11:49]} 11. Bxf6 {[%emt 0:04:24]} Qxf6 {[%emt 0:00:12]} 12. Ne4 {[%emt 0:08:14]} Qf7 {[%emt 0:00:28]} 13. Nfd2 {[%emt 0:01:41]} a5 {[%emt 0:04:03]} 14. a4 {[%emt 0:01:25]} Qg6 {[%emt 0:10:39]} 15. f3 {[%emt 0:04:10]} h5 {[%emt 0:01:54]} 16. h4 {[%emt 0:02:35]} Bb4 {[%emt 0:03:19]} 17. Ng5 {[%emt 0:12:28]} Rad8 {[%emt 0:02:48]} 18. O-O {[%emt 0:07:17]} Qd6 {[%emt 0:11:34]} 19. Nc4 {[%emt 0:10:48]} Qd4+ {[%emt 0:03:29]} 20. Qf2 {[%emt 0:00:30]} Bc5 {[%emt 0:00:30]} 21. Qxd4 {[%emt 0:02:01]} Rxd4 {[%emt 0:00:11]} 22. Kh2 {[%emt 0:00:16]} Rxh4+ {[%emt 0:01:23]} 23. Kg3 {[%emt 0:00:14]} Rd4 {[%emt 0:02:45]} 24. Nxa5 {[%emt 0:05:17]} Be7 {[%emt 0:40:28]} 25. Nh3 Rf6 {[%emt 0:00:30]} 26. Nc4 {[%emt 0:07:16]} Rg6+ {[%emt 0:00:00]} 27. Kh2 {[%emt 0:00:31]} Bh4 {[%emt 0:00:00]} 28. Nf2 {[%emt 0:06:23]} Bg3+ {[%emt 0:00:00]} 29. Kg1 {[%emt 0:00:30]} Rh4 {[%emt 0:00:00]} 30. Rfe1 {[%emt 0:00:54]} Rh2 {[%emt 0:00:00]} 31. Ne3 {[%emt 0:14:41]} Bf4 {[%emt 0:00:00]} 32. Nfd1 {[%emt 0:00:00]} h4 {[%emt 0:00:00]} 33. Kf1 {[%emt 0:00:00]} Be6 {[%emt 0:00:00]} 34. Ke2 {[%emt 0:00:00]} Bh3 {[%emt 0:00:00]} 35. Rg1 {[%emt 0:00:00]} Bxg2 {[%emt 0:00:00]} 36. Nf2 {[%emt 0:00:00]} Rg3 {[%emt 0:00:00]} 0-1

[Event "Srdja Dragasevic Memorial-A 2024"]
[Site "Cetinje"]
[Date "2024.06.25"]
[Round "5.13"]
[White "Vujovic, Savo"]
[Black "Pusara, Mihailo"]
[Result "1-0"]
[ECO "B68"]
[WhiteElo "2230"]
[BlackElo "2117"]
[Annotator "RC"]
[PlyCount "99"]
[EventDate "2024.06.23"]
[EventType "swiss"]
[EventCountry "MNE"]
[SourceTitle "playchess.com"]
[Source "ChessBase"]
[SourceQuality "1"]
[TimeControl "40/5400+30:1800+30"]

1. e4 {[%emt 0:10:24]} c5 {[%emt 0:00:05]} 2. Nf3 {[%emt 0:00:11]} d6 {[%emt 0:00:05]} 3. d4 {[%emt 0:00:19]} cxd4 {[%emt 0:00:05]} 4. Nxd4 {[%emt 0:00:03]} Nf6 {[%emt 0:00:06]} 5. Nc3 {[%emt 0:00:07]} Nc6 {[%emt 0:00:05]} 6. Bg5 {[%emt 0:00:26]} e6 {[%emt 0:00:06]} 7. Qd2 {[%emt 0:00:09]} a6 {[%emt 0:00:06]} 8. O-O-O {[%emt 0:00:24]} Bd7 {[%emt 0:00:07]} 9. f4 {[%emt 0:00:34]} Be7 {[%emt 0:00:05]} 10. Nf3 {[%emt 0:05:27]} b5 {[%emt 0:00:07]} 11. Bd3 {[%emt 0:08:18]} b4 {[%emt 0:03:18]} 12. Ne2 {[%emt 0:00:10]} Qb6 {[%emt 0:00:40]} 13. f5 {[%emt 0:08:43]} e5 {[%emt 0:00:13]} 14. Bxf6 {[%emt 0:00:26]} gxf6 {[%emt 0:00:10]} 15. Bc4 {[%emt 0:00:49]} h5 {[%emt 0:01:37]} 16. Kb1 {[%emt 0:02:03]} Rh7 {[%emt 0:05:00]} 17. Ng3 {[%emt 0:01:57]} O-O-O {[%emt 0:07:50]} 18. Nf1 {[%emt 0:03:43]} Na5 {[%emt 0:12:18]} 19. Bd5 {[%emt 0:01:03]} Bf8 {[%emt 0:04:13]} 20. Qe3 {[%emt 0:10:39]} Qc5 {[%emt 0:07:52]} 21. c4 {[%emt 0:09:19]} Bh6 {[%emt 0:06:12]} 22. Qe2 {[%emt 0:11:00]} Kc7 {[%emt 0:06:46]} 23. Ne1 {[%emt 0:04:39]} Bf8 {[%emt 0:15:37]} 24. Nd3 {[%emt 0:01:11]} Qb6 {[%emt 0:01:57]} 25. Ne3 {[%emt 0:02:51]} b3 {[%emt 0:07:19]} 26. axb3 {[%emt 0:08:21]} Nxb3 {[%emt 0:00:27]} 27. c5 {[%emt 0:01:04]} Nxc5 {[%emt 0:01:43]} 28. Nxc5 {[%emt 0:00:08]} dxc5 {[%emt 0:00:09]} 29. Bc4 {[%emt 0:00:31]} Bc6 {[%emt 0:01:22]} 30. Rxd8 {[%emt 0:00:32]} Kxd8 {[%emt 0:00:20]} 31. Qd3+ {[%emt 0:00:54]} Kc7 {[%emt 0:01:17]} 32. Bxa6 {[%emt 0:04:48]} Be7 {[%emt 0:02:37]} 33. Bc4 {[%emt 0:00:39]} Qb7 {[%emt 0:01:44]} 34. Bd5 {[%emt 0:00:12]} Bb5 {[%emt 0:00:55]} 35. Qd2 {[%emt 0:00:32]} Qa6 {[%emt 0:00:23]} 36. Bb3 {[%emt 0:00:54]} Bc6 {[%emt 0:01:53]} 37. Bd5 {[%emt 0:00:11]} Bb5 {[%emt 0:00:56]} 38. Bb3 {[%emt 0:00:04]} Bc6 {[%emt 0:00:14]} 39. Nd5+ {[%emt 0:02:20]} Bxd5 {[%emt 0:00:12]} 40. Qxd5 {[%emt 0:00:00]} Qb7 {[%emt 0:00:00]} 41. Qd3 {[%emt 0:07:27]} Bd6 {[%emt 0:06:34]} 42. Rd1 {[%emt 0:00:50]} Qc6 {[%emt 0:00:27]} 43. Ba4 {[%emt 0:01:04]} Qb6 {[%emt 0:00:58]} 44. Qd5 {[%emt 0:01:05]} Rg7 {[%emt 0:01:10]} 45. g3 {[%emt 0:00:07]} h4 {[%emt 0:08:57]} 46. g4 {[%emt 0:01:21]} Qa6 {[%emt 0:04:42]} 47. h3 {[%emt 0:01:05]} Qb6 {[%emt 0:01:36]} 48. Qa8 {[%emt 0:02:15]} Rh7 {[%emt 0:01:22]} 49. Qg8 {[%emt 0:07:19]} Qa6 {[%emt 0:02:14]} 50. Bc2 {[%emt 0:01:57]} 1-0